Cogmind - Beta 17.1 @@@ ROGUE MODE // 2026.09.17 @ 18:28:55 Player: H3-MLN Result: Destroyed self with Grenade Launcher Performance ------------- Evolutions (0) 0 Regions Visited (3) 600 Robots Destroyed (57) 285 Value Destroyed (1349) 1349 Prototype IDs (41) 820 Alien Tech Used (0) 0 Bonus (11728) 11728 TOTAL SCORE: 14782 Bonus ------- High Alert Combat Kills 432 Follower Combat Kills 204 Prayed to X0-1V1 5000 Major X0-1V1 Interference 6000 Aligned with FarCom 300 Friendly Fire -208 Cogmind --------- Core Integrity 0/200 Matter 520/900 Energy 967/1200 System Corruption 79% Temperature Cool (0) Movement Walking (90) Location -10/Exiles Parts ------- > --- POWER (2) -------- (None) > --- PROPULSION (1) --- Potential Leg > --- UTILITY (2) ------ Large Storage Unit Light Armor Plating > --- WEAPON (2) ------- Assault Rifle Grenade Launcher > --- INVENTORY (15) --- Light Treads Light Treads Potential Leg High-capacity Matter Pod (200) Sensor Drone Bay (20/20) Assault Rifle Datajack Makeshift Axe Peak State ------------ > --- POWER ------------ Ion Engine Improved Ion Engine > --- PROPULSION ------- Potential Leg > --- UTILITY ---------- Large Storage Unit Light Armor Plating > --- WEAPON ----------- Heavy Assault Rifle Makeshift Axe > --- INVENTORY -------- Nuclear Core Reinforced Deuterium Engine Fission Core Light Treads Light Treads Potential Leg High-capacity Matter Pod Light Armor Plating Sensor Drone Bay EM Shotgun Assault Rifle Assault Rifle Heavy Assault Rifle Grenade Launcher Datajack [Rating: 25] Favorites ----------- Power Ion Engine Engine Ion Engine Propulsion Light Treads Treads Light Treads Leg Potential Leg Wheel Wheel Utility Large Storage Unit Device X0-1V1's Piety Tracker Storage Large Storage Unit Protection Light Armor Plating Weapon Assault Rifle Energy Gun EM Shotgun Ballistic Gun Assault Rifle Launcher Grenade Launcher Slashing Weapon Makeshift Axe Special Melee Weapon Datajack Build | -11 -10 -10 -10 ------- Run | Yrd Mat Min Exi Slots Evolved . | . . . . Power . | . . . . Propulsion . | . . . . Utility . | . . . . Weapon . | . . . . Parts Attached 29 | 6 12 5 6 Power 4 | 1 3 . . Engine 4 | 1 3 . . Core . | . . . . Reactor . | . . . . Propulsion 5 | 2 1 1 1 Treads 3 | 2 . 1 . Leg 1 | . . . 1 Wheel 1 | . 1 . . Hover . | . . . . Flight . | . . . . Utility 7 | 1 2 3 1 Device 3 | . 1 2 . Storage 2 | 1 1 . . Processor . | . . . . Hackware . | . . . . Protection 2 | . . 1 1 Artifact . | . . . . Weapon 13 | 2 6 1 4 Energy Gun 1 | . . . 1 Energy Cannon . | . . . . Ballistic Gun 8 | 2 4 1 1 Ballistic Cannon . | . . . . Launcher 2 | . 2 . . Special Weapon . | . . . . Impact Weapon . | . . . . Slashing Weapon 1 | . . . 1 Piercing Weapon . | . . . . Special Melee Weapon 1 | . . . 1 Unidentified Prototypes 2 | . 1 1 . Corrupted Parts 1 | . . . 1 System Corruption 10 | . . . 10 Parts Lost 10 | . . 4 6 Power 2 | . . . 2 Propulsion 1 | . . 1 . Utility 2 | . . 1 1 Weapon 5 | . . 2 3 Highest Loss Streak 6 | . . 3 6 To Critical Strikes . | . . . . Average Backups 11 | 2 10 13 14 Power 1 | . . . 2 Propulsion 2 | 1 2 2 3 Utility 2 | . 2 3 2 Weapon 4 | . 3 6 5 Tool/Special . | . . . . Unused Backups 17 | . 6 . 11 Power 3 | . . . 3 Propulsion 8 | . 3 . 5 Utility 3 | . 2 . 1 Weapon 3 | . 1 . 2 Tool/Special . | . . . . Average Slot Usage (%) 97 | . 98 97 96 Engine 20 | . 14 28 25 Treads 12 | . 13 11 10 Wheel 3 | . 5 2 . Device 8 | . 10 9 . Storage 15 | . 16 14 14 Protection 3 | . . 1 13 Ballistic Gun 28 | . 35 25 16 Launcher 1 | . . 2 1 Special Melee Weapon 1 | . . . 9 Peak Build Rating 25 | 6 21 23 25 Average Rating 16 | 4 17 18 14 On Entrance 9 | . 6 21 11 Avg Prop Armor Cover (%) 10 | . . . 10 Naked Turns . | . . . . Heaviest Build 41 | 11 38 40 41 Greatest Support 41 | 40 40 31 41 Greatest Overweight (x) 3 | . 3 3 2 Average Overweight (x) 1 | . 1 1 . Largest Inventory Capacity 15 | 8 15 15 15 Average Capacity 14 | 6 14 15 15 Most Carried 15 | 4 15 15 15 Average Carried 11 | 2 10 13 14 Final Capacity 15 | 8 15 15 15 Final Carried 15 | 4 15 15 8 Class Distribution -------------------- 71% | Mutant 28% | Gunner Dominant Class ---------------- Gunner | -10/Materials Mutant | -10/Mines Mutant | -10/Exiles Resources | -11 -10 -10 -10 ----------- Run | Yrd Mat Min Exi Matter Collected 1989 | 217 794 960 18 Remotely . | . . . . Salvage Created 1533 | . 867 655 11 Parts 106 | . 60 46 . Haulers Intercepted 2 | . 2 . . Recyclers Shooed . | . . . . Parts Field Recycled . | . . . . Retrieved Matter . | . . . . Parts Self-Destructed . | . . . . Prevented . | . . . . Parts Restored . | . . . . Kills | -11 -10 -10 -10 ------- Run | Yrd Mat Min Exi Combat Hostiles Destroyed 47 | . 20 23 4 Guns 15 | . 10 5 . AOE 32 | . 10 18 4 Classes Destroyed 10 | . 9 . 1 Worker 2 | . 2 . . Builder 1 | . 1 . . Tunneler 3 | . 1 2 . Hauler 2 | . 2 . . Recycler 2 | . 2 . . Watcher 4 | . 3 1 . Swarmer 16 | . 9 7 . Grunt 23 | . 10 13 . Sentry 4 | . 1 3 . Assembled 4 | . . . 4 Best Kill Streak 8 | . 5 8 4 Combat Bots Only 7 | . 5 7 4 Max Kills in Single Turn 4 | . 2 4 1 Gunslinging 1 | . 1 . . Exploded 3 | . 2 3 1 Melee . | . . . . Uniques/NPCs Destroyed . | . . . . Combat | -11 -10 -10 -10 -------- Run | Yrd Mat Min Exi Hostile Shots Fired 155 | . 47 74 34 Missed 45 | . 12 26 7 Hits 110 | . 35 48 27 Melee 3 | . . . 3 Projectile 107 | . 35 48 24 Critical Strikes 7 | . 4 . 3 Damage Taken 2002 | . 403 650 949 Core 283 | . 42 138 103 Absorbed by Shields . | . . . . Ignored by Resistances 66 | . 33 33 . Regen/Repaired (Parts) 47 | . 47 . . Core Remaining (%) 100 | 100 . . . Volleys Fired 125 | . 45 64 16 Largest 3 | . 3 2 2 Hottest 63 | . 63 50 53 Shots Fired 228 | . 108 102 18 Gun 197 | . 101 89 7 Cannon . | . . . . Launcher 31 | . 7 13 11 Special . | . . . . Kinetic 196 | . 101 89 6 Thermal . | . . . . Explosive 31 | . 7 13 11 Electromagnetic 1 | . . . 1 Robot Hit Streak 8 | . 7 8 4 Robot Miss Streak 20 | . 4 20 4 Penetration Max . | . . . . Secondary Targets 4 | . 3 1 . Max Gunslinging Chain 1 | . 1 1 . Shots Hit Robots 118 | . 66 41 11 Core Hits 101 | . 47 41 13 Critical Kills 1 | . 1 . . Critical Parts Destroyed . | . . . . Critical Strikes 1 | . 1 . . Destroy 1 | . 1 . . Melee Attacks 6 | . . . 6 Impact . | . . . . Slashing 2 | . . . 2 Piercing . | . . . . Sneak Attacks 6 | . . . 6 Combat Hostiles . | . . . . Follow-up Attacks . | . . . . Damage Inflicted 3699 | . 1552 1570 577 Guns 1374 | . 832 515 27 Cannons . | . . . . Explosions 2183 | . 716 1055 412 Melee 138 | . . . 138 Ramming 4 | . 4 . . Kinetic 1357 | . 832 515 10 Thermal . | . . . . Explosive 2183 | . 716 1055 412 Electromagnetic 17 | . . . 17 Impact . | . . . . Slashing 138 | . . . 138 Piercing . | . . . . Highest Corruption 79 | . 15 69 79 Average Corruption 57 | . 5 56 70 Corruption Purged . | . . . . Corruption Blocked . | . . . . Effects 84 | . 2 58 24 Message Errors 21 | . . 14 7 Matter Fused 6 | . . 4 2 Heat Flow Errors 9 | . 1 3 5 Energy Discharges 9 | . . 6 3 Parts Rejected 2 | . . 1 1 Data Loss (minor) 7 | . . 3 4 Data Loss (major) 1 | . . 1 . Misfires 3 | . . 3 . Alerts 2 | . . 1 1 Misdirections 4 | . . 4 . Weapon Failures 20 | . 1 18 1 Overload Shots . | . . . . Overflow Damage 61 | . 61 . . Projectiles . | . . . . Explosions 61 | . 61 . . Melee . | . . . . Knockbacks . | . . . . Impact . | . . . . Kinetic . | . . . . Secondary . | . . . . Self-Inflicted Damage 141 | . 41 41 59 Shots 5 | . 1 2 2 Rammed 1 | . 1 . . Targets Rammed 1 | . 1 . . Kicked . | . . . . Crushed . | . . . . Highest Temperature 273 | . 176 273 204 Average Temperature 72 | . 50 99 77 Received Heat Transfer 438 | . 231 207 . Siege Activations . | . . . . Martial Activations . | . . . . Shielding Activations . | . . . . Robots Disrupted . | . . . . Combat Hostiles . | . . . . Robots Corrupted . | . . . . Combat Hostiles . | . . . . Parts Fried . | . . . . Impact Corruptions . | . . . . Robots Melted . | . . . . Combat Hostiles . | . . . . Parts Melted . | . . . . Heat Transferred . | . . . . Parts Sabotaged . | . . . . Parts Stolen . | . . . . Parts Stripped . | . . . . Power Chain Reactions . | . . . . Alert | -11 -10 -10 -10 ------- Run | Yrd Mat Min Exi Maximum Alert Level 4 | . 3 4 . Low Security (%) 43 | 100 64 . . Level 1 16 | . 22 8 . Level 2 7 | . 9 5 . Level 3 9 | . 3 20 . Level 4 23 | . . 65 . Level 5 . | . . . . High Security . | . . . . Max Security . | . . . . Peak Influence 1434 | . 751 1434 . Initial 289 | . . 289 . Average 531 | . 214 1137 . Influence Increases 2565 | . 1134 1431 . Destroy 0b10 Robot/C 1060 | . 400 660 . Destroy 0b10 Robot/NC 70 | . 55 15 . Destroy Leader 100 | . 60 40 . Allied During Kill 11 | . . 11 . Successful Hack 21 | . 21 . . Disable Machine 120 | . 90 30 . Destroy Structure 100 | . 74 26 . Partial Spotted 15 | . . 15 . Lose Combat Pursuer 60 | . . 60 . Miscellaneous 1008 | . 434 574 . Influence Decreases 2565 | . 390 789 1386 Entered New Map 1841 | . . 455 1386 Time Decay 684 | . 390 294 . Lost Part 40 | . . 40 . Squads Dispatched 4 | . 1 3 . Investigation 3 | . 1 2 . Extermination . | . . . . Reinforcement . | . . . . Assault 1 | . . 1 . Garrison . | . . . . Intercept . | . . . . Searches Triggered . | . . . . Construction Impeded . | . . . . Haulers Reinforced . | . . . . Active Scanning Responses . | . . . . Cargo Convoy Interrupts . | . . . . Stealth | -11 -10 -10 -10 --------- Run | Yrd Mat Min Exi Distress Signals 5 | . 2 3 . Communications Jammed . | . . . . Distress Signals . | . . . . Times Spotted 91 | . 24 51 16 Peak Tracking Total 11 | . 4 7 11 Tactical Retreats 5 | . . 3 2 Traps | -11 -10 -10 -10 ------- Run | Yrd Mat Min Exi Traps Triggered . | . . . . Indirectly . | . . . . Trap Hack Attempts . | . . . . Triggered . | . . . . Disarmed . | . . . . Reprogrammed . | . . . . Reused . | . . . . Traps Extracted . | . . . . Installed . | . . . . Triggered . | . . . . Machines | -11 -10 -10 -10 ---------- Run | Yrd Mat Min Exi Machines Disabled 14 | . 6 2 6 Max in Single Turn 3 | . 2 1 3 Machines Repaired . | . . . . Machines Dismantled . | . . . . Machines Sabotaged . | . . . . Overloaded Fab Kills . | . . . . Hacking | -11 -10 -10 -10 --------- Run | Yrd Mat Min Exi Machines Accessed 11 | . 8 1 2 Terminals 7 | . 7 . . Fabricators . | . . . . Repair Stations 1 | . 1 . . Recycling Units . | . . . . Scanalyzers . | . . . . Garrison Access . | . . . . Total Hacks 29 | . 23 1 5 Successful 17 | . 11 1 5 Failed 12 | . 12 . . Catastrophic 1 | . 1 . . Database Lockouts . | . . . . Manual 16 | . 15 . 1 Terminals 20 | . 20 . . Fabricators . | . . . . Repair Stations 3 | . 3 . . Recycling Units . | . . . . Scanalyzers . | . . . . Garrison Access . | . . . . Terminal Hacks 15 | . 9 1 5 Record 4 | . . . 4 Part Schematic 1 | . 1 . . Robot Schematic 1 | . 1 . . Robot Analysis 2 | . 2 . . Prototype ID Bank 1 | . 1 . . Open Door 1 | . . 1 . Locate Traps 3 | . 3 . . Hauler Manifests 1 | . 1 . . Proto ID Catalog 1 | . . . 1 Fabricator Hacks . | . . . . Repair Station Hacks 2 | . 2 . . Scan Component 1 | . 1 . . Repair 1 | . 1 . . Recycling Unit Hacks . | . . . . Scanalyzer . | . . . . Garrison Access Hacks . | . . . . Unauthorized Hacks . | . . . . Terminals . | . . . . Fabricators . | . . . . Repair Stations . | . . . . Recycling Units . | . . . . Scanalyzers . | . . . . Garrison Access . | . . . . Data Cores Recovered . | . . . . Used . | . . . . Hacking Detections 7 | . 7 . . Full Trace Events 1 | . 1 . . Feedback Events . | . . . . Feedback Blocked . | . . . . Robot Schematics Acquired 1 | . 1 . . Robots Built . | . . . . Authchips . | . . . . Time . | . . . . Total Robot Build Rating . | . . . . Part Schematics Acquired 1 | . 1 . . Parts Built . | . . . . Authchips . | . . . . Time . | . . . . Total Part Build Rating . | . . . . Part Studies Acquired . | . . . . Parts Repaired 1 | . 1 . . Time 26 | . 26 . . Parts Recycled . | . . . . Recycled Matter . | . . . . Retrieved Matter . | . . . . Retrieved Components . | . . . . Parts Scanalyzed . | . . . . Part Schematics Acquired . | . . . . Parts Damaged . | . . . . Bothacking | -11 -10 -10 -10 ------------ Run | Yrd Mat Min Exi Used RIF Installer . | . . . . Robots Hacked 4 | . . . 4 Non-combat 3 | . . . 3 Combat 1 | . . . 1 Robot Hacks Applied 4 | . . . 4 parse_system 4 | . . . 4 Relay Couplers Released . | . . . . Fabnet Peak Effective % . | . . . . Robots Rewired . | . . . . Allies Hacked . | . . . . Hacks Repelled . | . . . . Allies | -11 -10 -10 -10 -------- Run | Yrd Mat Min Exi Total Allies 1 | . . 1 . Largest Group 1 | . . 1 . Highest-Rated Group 103 | . . 103 . Highest-Rated Ally 103 | . . 103 . Total Orders . | . . . . Ally Attacks 20 | . . 20 . Total Damage 671 | . . 671 . Kills 10 | . . 10 . Allies Corrupted . | . . . . Allies Melted . | . . . . X0-1V1 Amusement Gains 117 | . 12 10 95 Average Entertainment 4 | . 4 4 . Good Acts 35 | . 20 15 . Bad Acts 69 | . 22 47 . Intel | -11 -10 -10 -10 ------- Run | Yrd Mat Min Exi Active Infowar (turns) . | . . . . Robot Analysis Total 2 | . 2 . . Derelict Logs Recovered 1 | . . 1 . Drone Launches . | . . . . Drone Recoveries . | . . . . Exploration | -11 -10 -10 -10 ------------- Run | Yrd Mat Min Exi Turns Passed 2301 | 83 1097 646 475 Spaces Moved 1080 | 46 568 210 256 Core 84 | 3 . . 81 Treads 561 | 43 284 149 85 Legs 90 | . . . 90 Wheels 345 | . 284 61 . Hover . | . . . . Flight . | . . . . Fastest Speed 45 | 50 125 125 45 Average Speed 164 | 152 154 206 153 Slowest Speed 240 | 160 240 240 240 Overloaded Moves 28 | . . . 28 Propulsion Burnouts . | . . . . Robots Hopped . | . . . . Potential Cave-ins 1 | . . 1 . Cave-ins Triggered . | . . . . Exploration Rate (%) 57 | 4 95 67 64 Regions Visited 3 Branch Regions 2 Pre-discovered Areas 2 | . . 1 1 Known Exits Taken 2 | . 1 1 . Unknown Exits Taken 1 | 1 . . . Scrap Searched . | . . . . Spaces Dug . | . . . . Terrain Destroyed 141 | . 76 23 42 Melee . | . . . . Projectile . | . . . . AOE 141 | . 76 23 42 Terrain Rammed . | . . . . Walls Destroyed . | . . . . Machines Disabled . | . . . . Actions | -11 -10 -10 -10 --------- Run | Yrd Mat Min Exi Total 1379 | 56 702 304 317 Wait 77 | 1 44 15 17 Move 1077 | 45 567 209 256 Hop . | . . . . Pick Up 31 | 4 20 3 4 Fast Attach 13 | 6 2 3 2 Attach 9 | . 2 3 4 Detach . | . . . . Swap 23 | . 13 6 4 Drop 17 | . 8 1 8 Fire 125 | . 45 64 16 Melee 6 | . . . 6 Ram . | . . . . Kick . | . . . . Crush 1 | . 1 . . Escape Stasis . | . . . . Rewire . | . . . . Trap . | . . . . Miscellaneous . | . . . . Route ------- -11/Scrapyard -10/Materials (discovered 5 exits: *Mat x3 / *Min / [*Sub]) -10/Mines (discovered 3 exits: *Mat / *Exi / [*Sub]) -10/Exiles (discovered 1 exit: [*Min]) History --------- Turn | Location | Event 8 | -11/Scrapyard | Discovered new exit (range 16) 84 | -11/Scrapyard | Entered Materials 301 | -10/Materials | Build established: Mutant 336 | -10/Materials | Discovered new exit (range 3) 340 | -10/Materials | Prayed at D.C.S.S. Altar Unit 384 | -10/Materials | Discovered new exit (range 13) 472 | -10/Materials | X0-1V1 mutated your Propulsion slot to Weapon slot 559 | -10/Materials | Repaired Grenade Launcher 559 | -10/Materials | Core integrity permanently improved by X0-1V1 (+200) 735 | -10/Materials | Discovered new exit (range 16) 794 | -10/Materials | Build established: Gunner 983 | -10/Materials | X0-1V1 foreshadows a heat wave 1003 | -10/Materials | X0-1V1 activates XOMVISION 1006 | -10/Materials | Identified exit to Materials 1006 | -10/Materials | X0-1V1 revealed exit location to -9/Materials 1039 | -10/Materials | X0-1V1 added 0b10 threat records associated with you (considerable) 1048 | -10/Materials | System corruption reached 10% 1057 | -10/Materials | X0-1V1 sent you into danger 1074 | -10/Materials | X0-1V1 put everyone to sleep 1079 | -10/Materials | X0-1V1 vaporized surrounding terrain (radius 15) 1083 | -10/Materials | Identified exit to Mines 1083 | -10/Materials | X0-1V1 revealed exit location to -10/Mines 1110 | -10/Materials | X0-1V1 added 0b10 threat records associated with you (considerable) 1114 | -10/Materials | Ambient heat levels rising (+10) 1136 | -10/Materials | X0-1V1 sent hostile G-34 Mercenary (x4) 1141 | -10/Materials | X0-1V1 vaporized surrounding terrain (radius 16) 1147 | -10/Materials | X0-1V1 mutated your Weapon slot to Power slot 1181 | -10/Materials | Entered Mines 1199 | -10/Mines | X0-1V1 sent you into danger 1209 | -10/Mines | X0-1V1 vaporized surrounding terrain (radius 25) 1209 | -10/Mines | Discovered exit to Materials (range 13) 1219 | -10/Mines | X0-1V1 caused items to flee you 1234 | -10/Mines | X0-1V1 added 0b10 threat records associated with you (major) 1243 | -10/Mines | X0-1V1 sent hostile G-34 Mercenary (x6) 1248 | -10/Mines | Met a Derelict shopkeep closing up shop 1253 | -10/Mines | X0-1V1 sent someone to keep an eye on you 1254 | -10/Mines | X0-1V1 tapped a No Entrance sign 1276 | -10/Mines | System corruption reached 30% 1282 | -10/Mines | X0-1V1 upgraded hostiles (x4) 1297 | -10/Mines | X0-1V1 sent allied H-61 Shepherd (x1) 1313 | -10/Mines | Destroyed 7 combat bots 1335 | -10/Mines | Mass support permanently improved by X0-1V1 (+11; -250 max core) 1336 | -10/Mines | Lost 3 parts (1n2w) 1359 | -10/Mines | X0-1V1 upgraded hostiles (x1) 1365 | -10/Mines | Discovered new exit (range 4) 1365 | -10/Mines | X0-1V1 whisked you away to safety 1367 | -10/Mines | X0-1V1 revealed exit location to -9/Materials 1382 | -10/Mines | X0-1V1 vaporized surrounding terrain (radius 23) 1397 | -10/Mines | Found the Drone Emporium 1401 | -10/Mines | X0-1V1 added 0b10 threat records associated with you (major) 1411 | -10/Mines | X0-1V1 sent you into danger 1440 | -10/Mines | Build established: Mutant 1475 | -10/Mines | Identified exit to Exiles 1475 | -10/Mines | X0-1V1 revealed exit location to -10/Exiles 1476 | -10/Mines | X0-1V1 put everyone to sleep 1500 | -10/Mines | X0-1V1 sent hostile S-10 Pest (x4) 1526 | -10/Mines | Items stopped fleeing you 1542 | -10/Mines | Learned location of Mines (-9) 1575 | -10/Mines | A weapon hastily lodged in a ceiling crevice suddenly fell to the ground 1677 | -10/Mines | X0-1V1 sent hostile G-34 Mercenary (x5) 1736 | -10/Mines | Found Prototype Device 1736 | -10/Mines | Identified Sensor Drone Bay 1817 | -10/Mines | Deemed a non-threat by the Exiles lab entrance 1827 | -10/Mines | Entered Exiles 1892 | -10/Exiles | Met 8R-AWN 1936 | -10/Exiles | Met EX-HEX 2028 | -10/Exiles | Met EX-DEC 2040 | -10/Exiles | Learned location of Zion (-7) 2103 | -10/Exiles | Met EX-BIN 2121 | -10/Exiles | Aligned with FarCom system 2123 | -10/Exiles | Given EX-Vault access code 2159 | -10/Exiles | Opened EX-Vault 2166 | -10/Exiles | Found Potential Leg 2168 | -10/Exiles | Found Potential Leg 2188 | -10/Exiles | Warned to stay clear of 0b10 Research branches 2202 | -10/Exiles | Exiles lab attacked by MAIN.C 2254 | -10/Exiles | Attacked by the Exiles 2256 | -10/Exiles | Core integrity fell below 50% 2258 | -10/Exiles | Core integrity fell below 20% 2281 | -10/Exiles | Discovered new exit (range 15) 2302 | -10/Exiles | Destroyed self with Grenade Launcher Last Messages --------------- 02273_ Hvy. Assault Rifle destroyed. 02273_ Lgt. Armor Plating destroyed. 02274_ Penetrated by HV Slug. 02278_ HV Slug penetrates DAS Turret. 02278_ DAS Turret suffers critical hit (Destroy). 02278_ HV Slug penetrates Wall. 02279_ X0-1V1 is highly amused! 02279_ Dropped Rigged Fission Core. 02279_ Acquired 15 matter. 02281_ EXIT=FOUND 02281_ Dropped Rigged Rnf. Deuterium Engine. 02283_ Dropped Rigged Nuclear Core. 02292_ Rigged Nuclear Core explodes. 02294_ Machine disabled. 02294_ as-64816 destroyed. 02295_ Rigged Fission Core explodes. 02300_ as-16477 destroyed. 02300_ Destroyed Asb. Hover Unit. 02302_ as-14748 destroyed. 02302_ X0-1V1 guffaws! Map ----- +----------------------------------------------------+ | | | | | | | ????????????????????????????????????????????? | | ????????????????????????????????????????????? | | ????????????????????????????????????????????? | | ????????????????????????????????????????????? | | ????????????????????????????????????????????? | | ????????????????????????????????????????????? | | ????????????????????????????????????????????? | | ????????????????????????????????????????????? | | ????????????????????????????????????????????? | | ????????????????????????????????????????????? | | ????????????????????????????????????????????? | | ????????????????????????????????????????????? | | ????????????????????????????????????????????? | | ????????????????????????????????????????????? | | ????????????????????????????????????????????? | | ????????????????????????????????????????????? | | ????????????????####????????????????????????? | | ???????????????## ##??????????????????????? | | ???????????????# #??????????????????????? | | ???????????????# < ###????????????????????? | | ???????????????# #????????????????????? | | ???????????????# #????????????????????? | | ???????????????# @ #????????????????????? | | ???????????????## #??????????????????? | | ????????????????# #??????????????????? | | ????????????????## #?????????#######?? | | ?????????????????# ###??????#!!! "#?? | | ?????????????????# %%#""##?????# "#?? | | ?????????????????## #?????# "#?? | | ??????????????????##" ##???## ""#?? | | ??????????????????#"" a ##### #?? | | ??????????????????### "#?? | | ?????????????????????# * #?? | | ?????????????????????? % #? | | ?????????????????????? ### ; % # | | ??????????????????????###???### #? | | ?????????????????????????????#"% % # | | ???????????????????????????"""" # | | ????????????????????????? "### | | ???????????????????????? "#?##" | | ????????????????????????? ##??#" | | ????????????????????????!""""""###???#"# | | ????????????????????????#######??????#### | | ????????????????????????????????????????### | | ??????????????????????????????????????????### | | ????????????????????????????????????????????# | | ????????????????????????????????????????????? | +----------------------------------------------------+ Best States ------------- Heat Dissipation 25 Energy Generation 17 Energy Capacity 1515 Matter Stores 801 Matter Capacity 900 Sight Range 19 Terrain Scan Density 10 Armor Coverage 150 Resistance: TH 43 Evasion (%) 61 Recoil Reduction 2 Item Schematics ----------------- Huge Storage Unit | -10/Materials | Hacked Robot Schematics ------------------ M-13 Machinist | -10/Materials | Hacked Fabricated ------------ Nothing Repaired ---------- Grenade Launcher | 21% | -10/Materials Studied --------- None Alien Tech Used ----------------- None Achievements -------------- None Challenges ------------ None Game ------ Seed ScimitarMetafiberActivator Manual? 0 Play Time 00:22:46 Cumulative 1826.1 hours Start 2026.09.17 @ 18:07:52 End 2026.09.17 @ 18:28:55 Sessions 1 Manual Loads 0 Difficulty Rogue Special Mode None Game No. 552 Rogue 544 Adventurer 4 Explorer 4 Win Type - Total 77 Types 32/12/6/4/2/5/9/2/3/2 Lore% 98 Gallery% 96 Achievement% 93 Wizard Run 0 Options --------- Layout 0 ASCII 0 Keyboard 0 Movement Numpad Keybinds 0 Fullscreen 2 Font 18/SmallcapsGlow Map View 76x50 Zoom Use 32% Tactical HUD 1 Map Filters NONE Filters NONE Steam 1 RUN: fdb9d924-9ad3-4dd4-abee-6dcee1aaaadb